Cogmind - Beta 16 @@@ ROGUE MODE // 2025.11.11 @ 14:29:35 Player: Zane Result: Destroyed by 0H-BWL(R) with Subdweller Laser Performance ------------- Evolutions (0) 0 Regions Visited (2) 400 Robots Destroyed (9) 45 Value Destroyed (243) 243 Prototype IDs (0) 0 Alien Tech Used (0) 0 Bonus (0) 0 TOTAL SCORE: 688 Bonus ------- None Cogmind --------- Core Integrity 0/250 Matter 288/300 Energy 125/125 System Corruption 0% Temperature Cool (6) Movement Treading (160) Location -10/Subcaves Parts ------- > --- POWER (1) -------- Light Ion Engine > --- PROPULSION (2) --- Light Treads Aluminum Leg > --- UTILITY (2) ------ Heat Sink Small Storage Unit > --- WEAPON (2) ------- Small Laser Light Assault Rifle > --- INVENTORY (8) ---- Aluminum Leg Subdweller Monowheel Small Matter Pod (50) Subdweller Optics Improved Terrain Scanner Small Laser Subdweller Beam Cannon Peak State ------------ > --- POWER ------------ Ion Engine > --- PROPULSION ------- Light Treads Light Treads > --- UTILITY ---------- Small Storage Unit Seismic Detector > --- WEAPON ----------- Small Laser Light Assault Rifle > --- INVENTORY -------- Light Ion Engine Aluminum Leg Aluminum Leg Small Matter Pod Improved Terrain Scanner ECM Suite EM Pulse Gun EM Pulse Gun [Rating: 8] Favorites ----------- Power Ion Engine Engine Ion Engine Propulsion Light Treads Treads Light Treads Leg Aluminum Leg Utility Small Storage Unit Device Seismic Detector Storage Small Storage Unit Weapon Light Assault Rifle Energy Gun Small Laser Ballistic Gun Light Assault Rifle Build | -11 -10 -10 ------- Run | Yrd Mat Sub Slots Evolved . | . . . Power . | . . . Propulsion . | . . . Utility . | . . . Weapon . | . . . Parts Attached 12 | 7 2 3 Power 2 | 2 . . Engine 2 | 2 . . Core . | . . . Reactor . | . . . Propulsion 3 | 2 . 1 Treads 2 | 2 . . Leg 1 | . . 1 Wheel . | . . . Hover . | . . . Flight . | . . . Utility 3 | 2 . 1 Device 2 | 1 . 1 Storage 1 | 1 . . Processor . | . . . Hackware . | . . . Protection . | . . . Artifact . | . . . Weapon 4 | 1 2 1 Energy Gun 2 | . 2 . Energy Cannon . | . . . Ballistic Gun 2 | 1 . 1 Ballistic Cannon . | . . . Launcher . | . . . Special Weapon . | . . . Impact Weapon . | . . . Slashing Weapon . | . . . Piercing Weapon . | . . . Special Melee Weapon . | . . . Unidentified Prototypes . | . . . Parts Lost 4 | . . 4 Power 1 | . . 1 Propulsion 1 | . . 1 Utility 1 | . . 1 Weapon 1 | . . 1 Highest Loss Streak 2 | . . 2 To Critical Strikes . | . . . Average Backups 7 | 4 7 7 Power . | . 1 . Propulsion 1 | 1 2 1 Utility 2 | . 2 3 Weapon 1 | 1 2 1 Tool/Special . | . . . Unused Backups 10 | . 2 8 Power . | . . . Propulsion 2 | . . 2 Utility 5 | . 1 4 Weapon 3 | . 1 2 Tool/Special . | . . . Average Slot Usage (%) 96 | . 93 98 Engine 14 | . 14 14 Treads 23 | . 28 19 Leg 4 | . . 8 Device 13 | . 14 12 Storage 14 | . 14 14 Energy Gun 10 | . 8 12 Ballistic Gun 14 | . 14 15 Peak Build Rating 8 | 6 8 8 Average Rating 7 | 4 7 7 On Entrance 4 | . 6 8 Avg Prop Armor Cover (%) 8 | . . 8 Naked Turns . | . . . Heaviest Build 14 | 12 13 14 Greatest Support 40 | 40 40 40 Greatest Overweight (x) . | . . . Average Overweight (x) . | . . . Largest Inventory Capacity 8 | 8 8 8 Average Capacity 7 | 7 8 8 Most Carried 8 | 6 8 8 Average Carried 7 | 4 7 7 Final Capacity 8 | 8 8 8 Final Carried 8 | 6 8 7 Class Distribution -------------------- 100% | Mutant Dominant Class ---------------- Mutant | -10/Materials Mutant | -10/Subcaves Resources | -11 -10 -10 ----------- Run | Yrd Mat Sub Matter Collected 422 | 221 67 134 Remotely . | . . . Salvage Created 278 | 11 133 134 Parts 23 | 2 12 9 Haulers Intercepted . | . . . Recyclers Shooed . | . . . Parts Field Recycled . | . . . Retrieved Matter . | . . . Parts Self-Destructed 9 | . . 9 Prevented . | . . . Parts Restored . | . . . Kills | -11 -10 -10 ------- Run | Yrd Mat Sub Combat Hostiles Destroyed 8 | . 5 3 Guns 8 | . 5 3 Classes Destroyed 5 | 1 2 2 Tunneler 1 | 1 . . Swarmer 3 | . 3 . Grunt 2 | . 2 . Sentry 1 | . . 1 Subdweller 2 | . . 2 Best Kill Streak 3 | 1 3 2 Combat Bots Only 3 | . 3 2 Max Kills in Single Turn 1 | 1 1 1 Gunslinging . | . . . Exploded . | . . . Melee . | . . . Uniques/NPCs Destroyed . | . . . Combat | -11 -10 -10 -------- Run | Yrd Mat Sub Hostile Shots Fired 68 | . 39 29 Missed 17 | . 11 6 Hits 51 | . 28 23 Projectile 51 | . 28 23 Critical Strikes 1 | . . 1 Damage Taken 895 | . 327 568 Core 260 | . 66 194 Absorbed by Shields . | . . . Core Remaining (%) 100 | 100 . . Volleys Fired 41 | 14 14 13 Largest 2 | 1 2 2 Hottest 60 | 20 60 60 Shots Fired 68 | 14 28 26 Gun 68 | 14 28 26 Cannon . | . . . Launcher . | . . . Special . | . . . Kinetic 46 | 14 14 18 Thermal 22 | . 14 8 Explosive . | . . . Electromagnetic . | . . . Robot Hit Streak 21 | 2 6 21 Robot Miss Streak 2 | 1 2 1 Penetration Max . | . . . Secondary Targets 1 | . . 1 Max Gunslinging Chain 1 | . . 1 Shots Hit Robots 51 | 9 19 23 Core Hits 20 | 4 9 7 Critical Kills 1 | . . 1 Critical Parts Destroyed . | . . . Critical Strikes 1 | . . 1 Destroy 1 | . . 1 Melee Attacks . | . . . Impact . | . . . Slashing . | . . . Piercing . | . . . Sneak Attacks . | . . . Combat Hostiles . | . . . Follow-up Attacks . | . . . Damage Inflicted 474 | 83 167 224 Guns 474 | 83 167 224 Cannons . | . . . Explosions . | . . . Melee . | . . . Ramming . | . . . Kinetic 320 | 83 67 170 Thermal 154 | . 100 54 Explosive . | . . . Electromagnetic . | . . . Impact . | . . . Slashing . | . . . Piercing . | . . . Highest Corruption . | . . . Average Corruption . | . . . Corruption Purged . | . . . Corruption Blocked . | . . . Overload Shots . | . . . Overflow Damage . | . . . Projectiles . | . . . Explosions . | . . . Melee . | . . . Knockbacks . | . . . Impact . | . . . Kinetic . | . . . Secondary . | . . . Self-Inflicted Damage . | . . . Shots . | . . . Rammed 1 | . 1 . Targets Rammed 1 | . 1 . Kicked . | . . . Crushed . | . . . Highest Temperature 299 | . 103 299 Average Temperature 74 | . 40 184 Received Heat Transfer 525 | . 129 396 Siege Activations . | . . . Martial Activations . | . . . Shielding Activations . | . . . Robots Disrupted . | . . . Combat Hostiles . | . . . Robots Corrupted . | . . . Combat Hostiles . | . . . Parts Fried . | . . . Impact Corruptions . | . . . Robots Melted . | . . . Combat Hostiles . | . . . Parts Melted 2 | . 2 . Heat Transferred 350 | . 225 125 Parts Sabotaged . | . . . Parts Stolen . | . . . Parts Stripped . | . . . Power Chain Reactions . | . . . Alert | -11 -10 -10 ------- Run | Yrd Mat Sub Maximum Alert Level . | . . . Low Security (%) 100 | 100 100 . Level 1 . | . . . Level 2 . | . . . Level 3 . | . . . Level 4 . | . . . Level 5 . | . . . High Security . | . . . Max Security . | . . . Peak Influence 65 | . 65 . Initial . | . . . Average 9 | . 11 . Influence Increases 159 | 5 134 20 Destroy 0b10 Robot/C 120 | . 100 20 Destroy 0b10 Robot/NC 5 | 5 . . Destroy Leader 20 | . 20 . Successful Hack 14 | . 14 . Influence Decreases 159 | 5 116 38 Entered New Map 10 | . . 10 Time Decay 149 | 5 116 28 Squads Dispatched . | . . . Investigation . | . . . Extermination . | . . . Reinforcement . | . . . Assault . | . . . Garrison . | . . . Intercept . | . . . Searches Triggered . | . . . Construction Impeded . | . . . Haulers Reinforced . | . . . Active Scanning Responses . | . . . Cargo Convoy Interrupts . | . . . Stealth | -11 -10 -10 --------- Run | Yrd Mat Sub Distress Signals . | . . . Communications Jammed . | . . . Distress Signals . | . . . Times Spotted 15 | . 11 4 Peak Tracking Total 3 | . 3 2 Tactical Retreats . | . . . Traps | -11 -10 -10 ------- Run | Yrd Mat Sub Traps Triggered 1 | . . 1 Indirectly . | . . . Trap Hack Attempts . | . . . Triggered . | . . . Disarmed . | . . . Reprogrammed . | . . . Reused . | . . . Traps Extracted . | . . . Installed . | . . . Triggered . | . . . Machines | -11 -10 -10 ---------- Run | Yrd Mat Sub Machines Disabled . | . . . Max in Single Turn . | . . . Machines Repaired . | . . . Machines Dismantled . | . . . Machines Sabotaged . | . . . Overloaded Fab Kills . | . . . Hacking | -11 -10 -10 --------- Run | Yrd Mat Sub Machines Accessed 5 | . 4 1 Terminals 4 | . 4 . Fabricators . | . . . Repair Stations . | . . . Recycling Units . | . . . Scanalyzers . | . . . Garrison Access . | . . . Total Hacks 11 | . 6 5 Successful 9 | . 4 5 Failed 2 | . 2 . Catastrophic 1 | . 1 . Database Lockouts . | . . . Manual 4 | . 4 . Terminals 6 | . 6 . Fabricators . | . . . Repair Stations . | . . . Recycling Units . | . . . Scanalyzers . | . . . Garrison Access . | . . . Terminal Hacks 8 | . 3 5 Record 5 | . . 5 Terminal Index 1 | . 1 . Dispatch Records 1 | . 1 . Zone Layout 1 | . 1 . Fabricator Hacks . | . . . Repair Station Hacks . | . . . Recycling Unit Hacks . | . . . Scanalyzer . | . . . Garrison Access Hacks . | . . . Unauthorized Hacks 1 | . 1 . Terminals 1 | . 1 . Assimilate 1 | . 1 . Fabricators . | . . . Repair Stations . | . . . Recycling Units . | . . . Scanalyzers . | . . . Garrison Access . | . . . Data Cores Recovered . | . . . Used . | . . . Hacking Detections 3 | . 3 . Full Trace Events . | . . . Feedback Events . | . . . Feedback Blocked . | . . . Robot Schematics Acquired . | . . . Robots Built . | . . . Authchips . | . . . Time . | . . . Total Robot Build Rating . | . . . Part Schematics Acquired . | . . . Parts Built . | . . . Authchips . | . . . Time . | . . . Total Part Build Rating . | . . . Part Studies Acquired . | . . . Parts Repaired . | . . . Time . | . . . Parts Recycled . | . . . Recycled Matter . | . . . Retrieved Matter . | . . . Retrieved Components . | . . . Parts Scanalyzed . | . . . Part Schematics Acquired . | . . . Parts Damaged . | . . . Bothacking | -11 -10 -10 ------------ Run | Yrd Mat Sub Used RIF Installer . | . . . Robots Hacked . | . . . Non-combat . | . . . Combat . | . . . Robot Hacks Applied . | . . . Relay Couplers Released . | . . . Fabnet Peak Effective % . | . . . Robots Rewired . | . . . Allies Hacked . | . . . Hacks Repelled . | . . . Allies | -11 -10 -10 -------- Run | Yrd Mat Sub Total Allies 1 | . 1 . Largest Group 1 | . 1 . Highest-Rated Group 10 | . 10 . Highest-Rated Ally 10 | . 10 . Total Orders . | . . . Ally Attacks . | . . . Total Damage . | . . . Kills . | . . . Allies Corrupted . | . . . Allies Melted . | . . . Intel | -11 -10 -10 ------- Run | Yrd Mat Sub Active Infowar (turns) 876 | 32 662 182 Seismic 876 | 32 662 182 Robot Analysis Total . | . . . Derelict Logs Recovered . | . . . Drone Launches . | . . . Drone Recoveries . | . . . Exploration | -11 -10 -10 ------------- Run | Yrd Mat Sub Turns Passed 1464 | 118 662 684 Spaces Moved 763 | 53 323 387 Core 6 | 6 . . Treads 757 | 47 323 387 Legs . | . . . Wheels . | . . . Hover . | . . . Flight . | . . . Fastest Speed 50 | 50 160 160 Average Speed 159 | 147 160 160 Slowest Speed 160 | 160 160 160 Overloaded Moves . | . . . Propulsion Burnouts . | . . . Robots Hopped . | . . . Potential Cave-ins . | . . . Cave-ins Triggered . | . . . Exploration Rate (%) 27 | 4 48 30 Regions Visited 2 Branch Regions 1 Pre-discovered Areas 1 | . . 1 Known Exits Taken . | . . . Unknown Exits Taken 2 | 1 1 . Scrap Searched . | . . . Spaces Dug . | . . . Terrain Destroyed . | . . . Melee . | . . . Projectile . | . . . AOE . | . . . Terrain Rammed . | . . . Walls Destroyed . | . . . Machines Disabled . | . . . Actions | -11 -10 -10 --------- Run | Yrd Mat Sub Total 948 | 79 444 425 Wait 112 | . 98 14 Move 761 | 52 322 387 Hop . | . . . Pick Up 13 | 6 4 3 Fast Attach 7 | 5 1 1 Attach 4 | 1 . 3 Detach . | . . . Swap 4 | 1 1 2 Drop 5 | . 3 2 Fire 41 | 14 14 13 Melee . | . . . Ram . | . . . Kick . | . . . Crush 1 | . 1 . Escape Stasis . | . . . Rewire . | . . . Trap . | . . . Miscellaneous . | . . . Route ------- -11/Scrapyard -10/Materials (discovered 3 exits: [*Mat] / [*Min] / *Sub) -10/Subcaves History --------- Turn | Location | Event 9 | -11/Scrapyard | Discovered new exit (range 15) 119 | -11/Scrapyard | Entered Materials 310 | -10/Materials | Build established: Mutant 329 | -10/Materials | Discovered new exit (range 9) 369 | -10/Materials | Discovered new exit (range 3) 557 | -10/Materials | Discovered new exit (range 7) 781 | -10/Materials | Entered Subcaves 863 | -10/Subcaves | Visited Clippyterm 868 | -10/Subcaves | Learned 40 Factory zone layouts 868 | -10/Subcaves | Learned Factory stockpile data 893 | -10/Subcaves | Learned location of Zion (-6) 893 | -10/Subcaves | Met a Zionite searching for "candidates" 1023 | -10/Subcaves | Core integrity fell below 50% 1029 | -10/Subcaves | Core integrity fell below 20% 1083 | -10/Subcaves | Shifting Twisted Machinery released Battle Cannon 1244 | -10/Subcaves | A swath of the cavern ceiling suddenly collapsed 1465 | -10/Subcaves | Destroyed by 0H-BWL(R) with Subdweller Laser Last Messages --------------- Source. 01045_ Acquired Heat Sink. 01048_ Acquired Sub. Monowheel. 01050_ Acquired 46 matter. 01053_ Dropped Cooling System. 01054_ Acquired Sub. Beam Cannon. 01057_ Subatomizers dissect the Sub. Power Source. Battle Cannon falls loose from the Twisted Machinery. 01220_ Subatomizers dissect the Sub. Power Source. A swath of the cavern ceiling suddenly collapses. 01297_ Subatomizers dissect the Sub. Power Source. 01388_ Triggered Piercing Trap. 01388_ Spikes shoot up from the floor. 01388_ Critical hit (Impale). 01455_ Ion Engine destroyed. Map ----- +----------------------------------------------------+ | | | | | ?????????????????????????????????????????????????? | | ?????????????????????????????????????????????????? | | ?????????????????????????????????????????????????? | | ????????????????????????????????????????????????"" | | ?????????????????????????????????????????????##" | | ?????????????????????????????????????????????# """ | | ?????????????????????????????????????????????+"""" | | ?????????????????????????????????????????????? """ | | ??????????????????????????????????????????????#""" | | ?????????????????????????????????????????????##" | | ????????????????????????????????????????######" " | | ????????????????????????????????????????# # "" | | ????????????????????????????????????????## " | | ????????????????????????????????????????#" ## # | | ??????????????????????????????????????###" "##### | | ???????????????????????????????????#### " ### | | ??????????????????????????????????## | | ???????????????????????????###????# | | ??????????????????????????## ###### ## ## | | ?????????? ?????????????# ### ###### | | ?????????? ###???????# ##### #????? | | ????????? ???#### #### ##???? | | ????????? ## ## # ##??# | | ?????????????# R@ # ### #?# | | ?????????????# ## # ## #?## ##?# | | ?????????? #?## # ## #??######?# | | ?????????? #???# ???????# # | | ?????????? ????# ## #?????###? | | ??????????? ????# # ##????????? | | ???????????## ?????## # ## ##?????????? | | ????????????## ??????? ""## # #?????????## | | ?????????????## ????????"""#? ? ###????????## | | ??????????????## ?????????""""? ? ??????????# | | ???????????????# ?????????#????#?# ##??????????# | | ???????????????#??????????????????#???????????# | | ???????????????????????????????????????????# | | ???????????????????????????????????????????## | | ????????????????????????????????????????????#### | | ???????????????????????????????????????????????# # | | ???????????????????????????????????????????????#?? | | ?????????????????????????????????????????????????? | | ?????????????????????????????????????????????????? | | ?????????????????????????????????????????????????? | | ?????????????????????????????????????????????????? | | ?????????????????????????????????????????????????# | | ?????????????????????????????????????????????????? | | ?????????????????????????????????????????????????? | | ?????????????????????????????????????????????????? | +----------------------------------------------------+ Best States ------------- Heat Dissipation 35 Energy Generation 10 Energy Capacity 250 Matter Stores 300 Matter Capacity 300 Sight Range 16 Terrain Scan Density 10 Evasion (%) 40 Recoil Reduction 2 Item Schematics ----------------- None Robot Schematics ------------------ None Fabricated ------------ Nothing Repaired ---------- Nothing Studied --------- None Alien Tech Used ----------------- None Achievements -------------- None Challenges ------------ None Game ------ Seed MeleeCarbideSpecial Manual? 0 Play Time 00:17:25 Cumulative 44.1 hours Start 2025.11.11 @ 10:12:51 End 2025.11.11 @ 14:29:35 Sessions 2 Manual Loads 0 Difficulty Rogue Special Mode None Game No. 57 Rogue 57 Adventurer 0 Explorer 0 Win Type - Total 0 Types 0/0/0/0/0/0/0/0/0/0 Lore% 44 Gallery% 36 Achievement% 23 Wizard Run 0 Options --------- Layout 2 ASCII 0 Keyboard 0 Movement Numpad Keybinds 0 Fullscreen 1 Font 24/Smallcaps Map View 50x44 Zoom Use 0% Tactical HUD 1 Map Filters NONE Filters NONE Steam 1 RUN: 19b2315d-d12b-4ee7-8894-0beb88d6c4a6